Workbook

Sheet Sheet1
A1: 2022年松桃苗族自治县公开招聘事业单位工作人员考试总成绩及拟进入体检人员名单
A2: 序号 | B2: 准考证号 | C2: 姓名 | D2: 报考单位名称 | E2: 报考岗位代码 | F2: 笔试成绩 | G2: 笔试成绩×50% | H2: 面试成绩 | I2: 面试成绩×50% | J2: 考试总成绩 | K2: 是否进入体检
A3: 1 | B3: 11220402322 | C3: 彭珍 | D3: 县新型城镇化产业发展招商服务中心 | E3: 01 | F3: 65.00 | G3: 32.50 | H3: 79.80 | I3: 39.90 | J3: =I3+G3 -> 72.40 | K3: 拟进入体检
A4: 2 | B4: 11220302123 | C4: 邹洪琴 | D4: 县新型城镇化产业发展招商服务中心 | E4: 01 | F4: 62.00 | G4: 31.00 | H4: 82.40 | I4: 41.20 | J4: =I4+G4 -> 72.20
A5: 3 | B5: 11220304001 | C5: 黄大伟 | D5: 县新型城镇化产业发展招商服务中心 | E5: 01 | F5: 63.00 | G5: 31.50 | H5: 77.20 | I5: 38.60 | J5: =I5+G5 -> 70.10
A6: 4 | B6: 11220107216 | C6: 吴薛娇 | D6: 县新型城镇化产业发展招商服务中心 | E6: 01 | F6: 62.00 | G6: 31.00 | H6: 0.00 | I6: 0.00 | J6: =I6+G6 -> 31.00
A7: 5 | B7: 11220401302 | C7: 卫忠富 | D7: 县非公有制经济和招商服务中心 | E7: 02 | F7: 72.50 | G7: 36.25 | H7: 84.90 | I7: 42.45 | J7: =I7+G7 -> 78.70 | K7: 拟进入体检
A8: 6 | B8: 11220302513 | C8: 张弯弯 | D8: 县非公有制经济和招商服务中心 | E8: 02 | F8: 67.50 | G8: 33.75 | H8: 83.80 | I8: 41.90 | J8: 75.65 | K8: 拟进入体检
A9: 7 | B9: 11220401721 | C9: 王鹏 | D9: 县非公有制经济和招商服务中心 | E9: 02 | F9: 66.50 | G9: 33.25 | H9: 83.36 | I9: 41.68 | J9: 74.93
A10: 8 | B10: 11220404317 | C10: 阳洋 | D10: 县非公有制经济和招商服务中心 | E10: 02 | F10: 67.50 | G10: 33.75 | H10: 76.20 | I10: 38.10 | J10: 71.85
A11: 9 | B11: 11220200315 | C11: 杨远 | D11: 县非公有制经济和招商服务中心 | E11: 02 | F11: 66.00 | G11: 33.00 | H11: 73.90 | I11: 36.95 | J11: 69.95
A12: 10 | B12: 11220400801 | C12: 田露 | D12: 县非公有制经济和招商服务中心 | E12: 02 | F12: 66.00 | G12: 33.00 | H12: 0.00 | I12: 0.00 | J12: 33.00
A13: 11 | B13: 11220302905 | C13: 李进 | D13: 县经济作物管理站 | E13: 03 | F13: 62.00 | G13: 31.00 | H13: 77.20 | I13: 38.60 | J13: 69.60 | K13: 拟进入体检
A14: 12 | B14: 11220402008 | C14: 易阳平 | D14: 县经济作物管理站 | E14: 03 | F14: 61.00 | G14: 30.50 | H14: 74.36 | I14: 37.18 | J14: 67.68
A15: 13 | B15: 11220302705 | C15: 龙兰萍 | D15: 县经济作物管理站 | E15: 03 | F15: 62.00 | G15: 31.00 | H15: 0.00 | I15: 0.00 | J15: 31.00
A16: 14 | B16: 11220102728 | C16: 熊越 | D16: 县全域旅游发展中心 | E16: 04 | F16: 70.50 | G16: 35.25 | H16: 86.90 | I16: 43.45 | J16: 78.70 | K16: 拟进入体检
A17: 15 | B17: 11220103728 | C17: 龙晓燕 | D17: 县全域旅游发展中心 | E17: 04 | F17: 65.50 | G17: 32.75 | H17: 88.20 | I17: 44.10 | J17: 76.85 | K17: 拟进入体检
A18: 16 | B18: 11220404301 | C18: 杨紫娴 | D18: 县全域旅游发展中心 | E18: 04 | F18: 70.50 | G18: 35.25 | H18: 79.66 | I18: 39.83 | J18: 75.08
A19: 17 | B19: 11220101404 | C19: 黄成林 | D19: 县全域旅游发展中心 | E19: 04 | F19: 66.00 | G19: 33.00 | H19: 83.00 | I19: 41.50 | J19: 74.50
A20: 18 | B20: 11220205217 | C20: 张鑫 | D20: 县全域旅游发展中心 | E20: 04 | F20: 67.50 | G20: 33.75 | H20: 81.30 | I20: 40.65 | J20: 74.40
A21: 19 | B21: 11220401701 | C21: 李陈峰 | D21: 县全域旅游发展中心 | E21: 04 | F21: 65.50 | G21: 32.75 | H21: 81.90 | I21: 40.95 | J21: 73.70
A22: 20 | B22: 11220201608 | C22: 梁旭 | D22: 县全域旅游发展中心 | E22: 04 | F22: 66.50 | G22: 33.25 | H22: 79.26 | I22: 39.63 | J22: 72.88
A23: 21 | B23: 11220204420 | C23: 余进为 | D23: 县全域旅游发展中心 | E23: 04 | F23: 65.50 | G23: 32.75 | H23: 77.20 | I23: 38.60 | J23: 71.35
A24: 22 | B24: 11220102806 | C24: 张锐 | D24: 县劳动人事仲裁争议院 | E24: 05 | F24: 62.50 | G24: 31.25 | H24: 82.86 | I24: 41.43 | J24: 72.68 | K24: 拟进入体检
A25: 23 | B25: 11220106301 | C25: 雷慧 | D25: 县劳动人事仲裁争议院 | E25: 05 | F25: 63.50 | G25: 31.75 | H25: 78.56 | I25: 39.28 | J25: 71.03
A26: 24 | B26: 11220104908 | C26: 杨啸天 | D26: 县劳动人事仲裁争议院 | E26: 05 | F26: 62.50 | G26: 31.25 | H26: 78.70 | I26: 39.35 | J26: 70.60
A27: 25 | B27: 11220302618 | C27: 杨蕊 | D27: 县人力资源服务中心 | E27: 06 | F27: 70.00 | G27: 35.00 | H27: 85.00 | I27: 42.50 | J27: 77.50 | K27: 拟进入体检
A28: 26 | B28: 11220107103 | C28: 谢玉红 | D28: 县人力资源服务中心 | E28: 06 | F28: 68.00 | G28: 34.00 | H28: 79.40 | I28: 39.70 | J28: 73.70
A29: 27 | B29: 11220107901 | C29: 吴承贵 | D29: 县人力资源服务中心 | E29: 06 | F29: 69.50 | G29: 34.75 | H29: 70.00 | I29: 35.00 | J29: 69.75
A30: 28 | B30: 11220400711 | C30: 杨济之 | D30: 县中医药发展研究中心 | E30: 07 | F30: 66.00 | G30: 33.00 | H30: 75.60 | I30: 37.80 | J30: 70.80 | K30: 拟进入体检
A31: 29 | B31: 11220100916 | C31: 龙根 | D31: 县中医药发展研究中心 | E31: 07 | F31: 63.50 | G31: 31.75 | H31: 77.80 | I31: 38.90 | J31: 70.65
A32: 30 | B32: 11220401703 | C32: 康涛 | D32: 县中医药发展研究中心 | E32: 07 | F32: 66.00 | G32: 33.00 | H32: 73.80 | I32: 36.90 | J32: 69.90
A33: 31 | B33: 11220400204 | C33: 何琳琳 | D33: 县气象防灾减灾中心 | E33: 08 | F33: 71.00 | G33: 35.50 | H33: 79.40 | I33: 39.70 | J33: 75.20 | K33: 拟进入体检
A34: 32 | B34: 11220104016 | C34: 莫云繁 | D34: 县气象防灾减灾中心 | E34: 08 | F34: 66.50 | G34: 33.25 | H34: 80.20 | I34: 40.10 | J34: 73.35
A35: 33 | B35: 11220103214 | C35: 龙林 | D35: 县气象防灾减灾中心 | E35: 08 | F35: 69.50 | G35: 34.75 | H35: 76.80 | I35: 38.40 | J35: 73.15
A36: 34 | B36: 11220400619 | C36: 麻天雄 | D36: 县长兴片区水务服务中心 | E36: 09 | F36: 61.50 | G36: 30.75 | H36: 77.40 | I36: 38.70 | J36: 69.45 | K36: 拟进入体检
A37: 35 | B37: 11220301127 | C37: 许宏玲 | D37: 县长兴片区水务服务中心 | E37: 09 | F37: 58.50 | G37: 29.25 | H37: 78.60 | I37: 39.30 | J37: 68.55
A38: 36 | B38: 11220206115 | C38: 吴锴 | D38: 县长兴片区水务服务中心 | E38: 09 | F38: 57.00 | G38: 28.50 | H38: 78.40 | I38: 39.20 | J38: 67.70
A39: 37 | B39: 11220204423 | C39: 田红聪 | D39: 县乌罗片区水务服务中心 | E39: 10 | F39: 64.00 | G39: 32.00 | H39: 83.20 | I39: 41.60 | J39: 73.60 | K39: 拟进入体检
A40: 38 | B40: 11220403513 | C40: 刘廷烽 | D40: 县乌罗片区水务服务中心 | E40: 10 | F40: 60.00 | G40: 30.00 | H40: 80.60 | I40: 40.30 | J40: 70.30
A41: 39 | B41: 11220205404 | C41: 李家驹 | D41: 县乌罗片区水务服务中心 | E41: 10 | F41: 56.50 | G41: 28.25 | H41: 81.00 | I41: 40.50 | J41: 68.75
A42: 40 | B42: 11220403301 | C42: 聂玲磊 | D42: 县乌罗片区水务服务中心 | E42: 10 | F42: 56.50 | G42: 28.25 | H42: 0.00 | I42: 0.00 | J42: 28.25
A43: 41 | B43: 11220301626 | C43: 吴崇尚 | D43: 县牛郎片区水务服务中心 | E43: 11 | F43: 60.50 | G43: 30.25 | H43: 82.00 | I43: 41.00 | J43: 71.25 | K43: 拟进入体检
A44: 42 | B44: 11220102601 | C44: 卢振宇 | D44: 县牛郎片区水务服务中心 | E44: 11 | F44: 55.00 | G44: 27.50 | H44: 75.80 | I44: 37.90 | J44: 65.40
A45: 43 | B45: 11220200401 | C45: 刘兵 | D45: 县牛郎片区水务服务中心 | E45: 11 | F45: 54.00 | G45: 27.00 | H45: 76.80 | I45: 38.40 | J45: 65.40
A46: 44 | B46: 11220203011 | C46: 陈俊松 | D46: 县财政局太平营分局 | E46: 12 | F46: 68.00 | G46: 34.00 | H46: 79.20 | I46: 39.60 | J46: 73.60 | K46: 拟进入体检
A47: 45 | B47: 11220302211 | C47: 杨玲 | D47: 县财政局太平营分局 | E47: 12 | F47: 60.00 | G47: 30.00 | H47: 82.00 | I47: 41.00 | J47: 71.00
A48: 46 | B48: 11220205316 | C48: 胡超 | D48: 县财政局太平营分局 | E48: 12 | F48: 63.00 | G48: 31.50 | H48: 76.20 | I48: 38.10 | J48: 69.60
A49: 47 | B49: 11220302515 | C49: 何海燕 | D49: 县财政局木树分局 | E49: 13 | F49: 61.00 | G49: 30.50 | H49: 81.00 | I49: 40.50 | J49: 71.00 | K49: 拟进入体检
A50: 48 | B50: 11220103805 | C50: 吴文章 | D50: 县财政局木树分局 | E50: 13 | F50: 63.00 | G50: 31.50 | H50: 75.20 | I50: 37.60 | J50: 69.10
A51: 49 | B51: 11220303330 | C51: 杨碧桃 | D51: 县财政局木树分局 | E51: 13 | F51: 54.50 | G51: 27.25 | H51: 0.00 | I51: 0.00 | J51: 27.25
A52: 50 | B52: 11220302823 | C52: 吴星 | D52: 县财政局迓驾分局 | E52: 14 | F52: 64.00 | G52: 32.00 | H52: 77.00 | I52: 38.50 | J52: 70.50 | K52: 拟进入体检
A53: 51 | B53: 11220403927 | C53: 吴超 | D53: 县财政局迓驾分局 | E53: 14 | F53: 58.50 | G53: 29.25 | H53: 74.80 | I53: 37.40 | J53: 66.65
A54: 52 | B54: 11220102910 | C54: 石琪 | D54: 县财政局迓驾分局 | E54: 14 | F54: 58.50 | G54: 29.25 | H54: 72.00 | I54: 36.00 | J54: 65.25
A55: 53 | B55: 11220203417 | C55: 喻磊 | D55: 九江街道国土资源管理所 | E55: 15 | F55: 71.50 | G55: 35.75 | H55: 76.20 | I55: 38.10 | J55: 73.85 | K55: 拟进入体检
A56: 54 | B56: 11220104709 | C56: 黄舒曼 | D56: 九江街道国土资源管理所 | E56: 15 | F56: 65.50 | G56: 32.75 | H56: 79.00 | I56: 39.50 | J56: 72.25
A57: 55 | B57: 11220105024 | C57: 覃志刚 | D57: 九江街道国土资源管理所 | E57: 15 | F57: 64.50 | G57: 32.25 | H57: 79.20 | I57: 39.60 | J57: 71.85
A58: 56 | B58: 11220106722 | C58: 田一琼 | D58: 木树镇国土资源管理所 | E58: 16 | F58: 61.00 | G58: 30.50 | H58: 76.20 | I58: 38.10 | J58: 68.60 | K58: 拟进入体检
A59: 57 | B59: 11220203407 | C59: 柳运秋 | D59: 木树镇国土资源管理所 | E59: 16 | F59: 55.50 | G59: 27.75 | H59: 79.80 | I59: 39.90 | J59: 67.65
A60: 58 | B60: 11220202407 | C60: 张拉松 | D60: 木树镇国土资源管理所 | E60: 16 | F60: 54.50 | G60: 27.25 | H60: 75.20 | I60: 37.60 | J60: 64.85
A61: 59 | B61: 11220105817 | C61: 王政淋 | D61: 迓驾镇国土资源管理所 | E61: 17 | F61: 67.00 | G61: 33.50 | H61: 75.60 | I61: 37.80 | J61: 71.30 | K61: 拟进入体检
A62: 60 | B62: 11220301118 | C62: 黄泰龙 | D62: 迓驾镇国土资源管理所 | E62: 17 | F62: 61.50 | G62: 30.75 | H62: 73.80 | I62: 36.90 | J62: 67.65
A63: 61 | B63: 11220104330 | C63: 杨文杰 | D63: 迓驾镇国土资源管理所 | E63: 17 | F63: 60.00 | G63: 30.00 | H63: 0.00 | I63: 0.00 | J63: 30.00
A64: 62 | B64: 11220302924 | C64: 邓和甲 | D64: 普觉镇国土资源管理所 | E64: 18 | F64: 67.00 | G64: 33.50 | H64: 79.60 | I64: 39.80 | J64: 73.30 | K64: 拟进入体检
A65: 63 | B65: 11220106219 | C65: 税红福 | D65: 普觉镇国土资源管理所 | E65: 18 | F65: 65.00 | G65: 32.50 | H65: 78.80 | I65: 39.40 | J65: 71.90
A66: 64 | B66: 11220102108 | C66: 廖豪 | D66: 普觉镇国土资源管理所 | E66: 18 | F66: 62.50 | G66: 31.25 | H66: 0.00 | I66: 0.00 | J66: 31.25
A67: 65 | B67: 11220103310 | C67: 冉光阳 | D67: 永安乡国土资源管理所 | E67: 19 | F67: 55.50 | G67: 27.75 | H67: 83.40 | I67: 41.70 | J67: 69.45 | K67: 拟进入体检
A68: 66 | B68: 11220300626 | C68: 龚旭 | D68: 永安乡国土资源管理所 | E68: 19 | F68: 58.00 | G68: 29.00 | H68: 78.80 | I68: 39.40 | J68: 68.40
A69: 67 | B69: 11220203725 | C69: 龙锦 | D69: 永安乡国土资源管理所 | E69: 19 | F69: 57.50 | G69: 28.75 | H69: 62.40 | I69: 31.20 | J69: 59.95
A70: 68 | B70: 11220106820 | C70: 刘峥一 | D70: 石梁乡国土资源管理所 | E70: 20 | F70: 62.00 | G70: 31.00 | H70: 82.60 | I70: 41.30 | J70: 72.30 | K70: 拟进入体检
A71: 69 | B71: 11220106818 | C71: 麻老仪 | D71: 石梁乡国土资源管理所 | E71: 20 | F71: 61.00 | G71: 30.50 | H71: 77.20 | I71: 38.60 | J71: =I71+G71 -> 69.10
A72: 70 | B72: 11220202908 | C72: 杨飞 | D72: 石梁乡国土资源管理所 | E72: 20 | F72: 61.50 | G72: 30.75 | H72: 73.40 | I72: 36.70 | J72: 67.45
A73: 71 | B73: 11220303023 | C73: 田野 | D73: 瓦溪乡国土资源管理所 | E73: 21 | F73: 51.00 | G73: 25.50 | H73: 80.44 | I73: 40.22 | J73: 65.72 | K73: 拟进入体检
A74: 72 | B74: 11220303001 | C74: 杨赦清 | D74: 瓦溪乡国土资源管理所 | E74: 21 | F74: 49.00 | G74: 24.50 | H74: 81.10 | I74: 40.55 | J74: 65.05
A75: 73 | B75: 11220105809 | C75: 杨娟 | D75: 瓦溪乡国土资源管理所 | E75: 21 | F75: 49.00 | G75: 24.50 | H75: 79.50 | I75: 39.75 | J75: 64.25
A76: 74 | B76: 11220102608 | C76: 冉文松 | D76: 瓦溪乡国土资源管理所 | E76: 21 | F76: 49.00 | G76: 24.50 | H76: 76.00 | I76: 38.00 | J76: 62.50
A77: 75 | B77: 11220106208 | C77: 石玉平 | D77: 蓼皋街道综治中心（网格化管理服务中心） | E77: 22 | F77: 69.00 | G77: 34.50 | H77: 81.20 | I77: 40.60 | J77: 75.10 | K77: 拟进入体检
A78: 76 | B78: 11220103503 | C78: 李思美 | D78: 蓼皋街道综治中心（网格化管理服务中心） | E78: 22 | F78: 78.00 | G78: 39.00 | H78: 66.60 | I78: 33.30 | J78: 72.30
A79: 77 | B79: 11220206010 | C79: 易娇娇 | D79: 蓼皋街道综治中心（网格化管理服务中心） | E79: 22 | F79: 68.00 | G79: 34.00 | H79: 0.00 | I79: 0.00 | J79: 34.00
A80: 78 | B80: 11220106512 | C80: 黄小雷 | D80: 蓼皋街道乡村振兴服务中心 | E80: 23 | F80: 66.50 | G80: 33.25 | H80: 85.60 | I80: 42.80 | J80: 76.05 | K80: 拟进入体检
A81: 79 | B81: 11220300606 | C81: 黄振 | D81: 蓼皋街道乡村振兴服务中心 | E81: 23 | F81: 67.00 | G81: 33.50 | H81: 78.36 | I81: 39.18 | J81: 72.68
A82: 80 | B82: 11220106903 | C82: 张萍 | D82: 蓼皋街道乡村振兴服务中心 | E82: 23 | F82: 67.00 | G82: 33.50 | H82: 76.40 | I82: 38.20 | J82: 71.70
A83: 81 | B83: 11220203408 | C83: 胡薇 | D83: 蓼皋街道移民服务站 | E83: 24 | F83: 69.00 | G83: 34.50 | H83: 86.20 | I83: 43.10 | J83: 77.60 | K83: 拟进入体检
A84: 82 | B84: 11220402622 | C84: 唐耀泓 | D84: 蓼皋街道移民服务站 | E84: 24 | F84: 68.00 | G84: 34.00 | H84: 78.32 | I84: 39.16 | J84: 73.16
A85: 83 | B85: 11220201323 | C85: 王香儿 | D85: 蓼皋街道移民服务站 | E85: 24 | F85: 68.50 | G85: 34.25 | H85: 76.62 | I85: 38.31 | J85: 72.56
A86: 84 | B86: 11220106804 | C86: 吴康 | D86: 九江街道乡村振兴服务中心 | E86: 25 | F86: 71.00 | G86: 35.50 | H86: 85.06 | I86: 42.53 | J86: 78.03 | K86: 拟进入体检
A87: 85 | B87: 11220203003 | C87: 吴松玲 | D87: 九江街道乡村振兴服务中心 | E87: 25 | F87: 66.00 | G87: 33.00 | H87: 84.92 | I87: 42.46 | J87: 75.46 | K87: 拟进入体检
A88: 86 | B88: 11220201530 | C88: 姚航 | D88: 九江街道乡村振兴服务中心 | E88: 25 | F88: 69.00 | G88: 34.50 | H88: 78.10 | I88: 39.05 | J88: 73.55
A89: 87 | B89: 11220404625 | C89: 彭云贵 | D89: 九江街道乡村振兴服务中心 | E89: 25 | F89: 65.00 | G89: 32.50 | H89: 81.72 | I89: 40.86 | J89: 73.36
A90: 88 | B90: 11220301722 | C90: 李应权 | D90: 九江街道乡村振兴服务中心 | E90: 25 | F90: 65.00 | G90: 32.50 | H90: 68.70 | I90: 34.35 | J90: 66.85
A91: 89 | B91: 11220401328 | C91: 雷鹏 | D91: 九江街道乡村振兴服务中心 | E91: 25 | F91: 64.50 | G91: 32.25 | H91: 0.00 | I91: 0.00 | J91: 32.25
A92: 90 | B92: 11220107104 | C92: 王子灵 | D92: 世昌街道乡村振兴服务中心 | E92: 26 | F92: 61.00 | G92: 30.50 | H92: 83.12 | I92: 41.56 | J92: 72.06 | K92: 拟进入体检
A93: 91 | B93: 11220108103 | C93: 田红梅 | D93: 世昌街道乡村振兴服务中心 | E93: 26 | F93: 54.50 | G93: 27.25 | H93: 84.04 | I93: 42.02 | J93: 69.27
A94: 92 | B94: 11220404222 | C94: 龙丽江 | D94: 世昌街道乡村振兴服务中心 | E94: 26 | F94: 56.00 | G94: 28.00 | H94: 79.84 | I94: 39.92 | J94: 67.92
A95: 93 | B95: 11220206221 | C95: 侯松平 | D95: 太平营街道党务政务综合服务中心 | E95: 27 | F95: 80.50 | G95: 40.25 | H95: 78.42 | I95: 39.21 | J95: 79.46 | K95: 拟进入体检
A96: 94 | B96: 11220203122 | C96: 龙磊 | D96: 太平营街道党务政务综合服务中心 | E96: 27 | F96: 76.00 | G96: 38.00 | H96: 82.40 | I96: 41.20 | J96: 79.20
A97: 95 | B97: 11220303218 | C97: 龙振兴 | D97: 太平营街道党务政务综合服务中心 | E97: 27 | F97: 64.50 | G97: 32.25 | H97: 81.00 | I97: 40.50 | J97: 72.75
A98: 96 | B98: 11220404117 | C98: 唐刚 | D98: 孟溪镇党务政务综合服务中心 | E98: 28 | F98: 71.00 | G98: 35.50 | H98: 74.72 | I98: 37.36 | J98: 72.86 | K98: 拟进入体检
A99: 97 | B99: 11220400424 | C99: 蒋雪松 | D99: 孟溪镇党务政务综合服务中心 | E99: 28 | F99: 66.50 | G99: 33.25 | H99: 76.06 | I99: 38.03 | J99: 71.28
A100: 98 | B100: 11220403012 | C100: 徐安飞 | D100: 孟溪镇党务政务综合服务中心 | E100: 28 | F100: 64.50 | G100: 32.25 | H100: 77.22 | I100: 38.61 | J100: 70.86
A101: 99 | B101: 11220302715 | C101: 高艳兰 | D101: 孟溪镇乡村振兴服务中心 | E101: 29 | F101: 64.00 | G101: 32.00 | H101: 79.88 | I101: 39.94 | J101: 71.94 | K101: 拟进入体检
A102: 100 | B102: 11220400423 | C102: 姜金山 | D102: 孟溪镇乡村振兴服务中心 | E102: 29 | F102: 71.50 | G102: 35.75 | H102: 70.52 | I102: 35.26 | J102: 71.01
A103: 101 | B103: 11220106408 | C103: 陈坤石 | D103: 孟溪镇乡村振兴服务中心 | E103: 29 | F103: 62.00 | G103: 31.00 | H103: 78.06 | I103: 39.03 | J103: 70.03
A104: 102 | B104: 11220402814 | C104: 欧文 | D104: 孟溪镇农业服务中心 | E104: 30 | F104: 46.50 | G104: 23.25 | H104: 81.78 | I104: 40.89 | J104: 64.14 | K104: 拟进入体检
A105: 103 | B105: 11220101216 | C105: 龙舟 | D105: 孟溪镇农业服务中心 | E105: 30 | F105: 48.50 | G105: 24.25 | H105: 74.70 | I105: 37.35 | J105: 61.60
A106: 104 | B106: 11220107206 | C106: 毛兴旺 | D106: 孟溪镇农业服务中心 | E106: 30 | F106: 51.00 | G106: 25.50 | H106: 71.12 | I106: 35.56 | J106: 61.06
A107: 105 | B107: 11220404323 | C107: 杨赟 | D107: 黄板镇社会工作服务中心 | E107: 31 | F107: 67.50 | G107: 33.75 | H107: 82.80 | I107: 41.40 | J107: 75.15 | K107: 拟进入体检
A108: 106 | B108: 11220302426 | C108: 胡廷吉 | D108: 黄板镇社会工作服务中心 | E108: 31 | F108: 69.00 | G108: 34.50 | H108: 78.04 | I108: 39.02 | J108: 73.52
A109: 107 | B109: 11220200103 | C109: 叶丽香 | D109: 黄板镇社会工作服务中心 | E109: 31 | F109: 60.50 | G109: 30.25 | H109: 80.04 | I109: 40.02 | J109: 70.27
A110: 108 | B110: 11220202406 | C110: 欧含妹 | D110: 妙隘乡党务政务综合服务中心 | E110: 32 | F110: 63.50 | G110: 31.75 | H110: 81.02 | I110: 40.51 | J110: 72.26 | K110: 拟进入体检
A111: 109 | B111: 11220205912 | C111: 吴亚娟 | D111: 妙隘乡党务政务综合服务中心 | E111: 32 | F111: 59.00 | G111: 29.50 | H111: 82.00 | I111: 41.00 | J111: 70.50 | K111: 拟进入体检
A112: 110 | B112: 11220204210 | C112: 麻和 | D112: 妙隘乡党务政务综合服务中心 | E112: 32 | F112: 58.00 | G112: 29.00 | H112: 77.60 | I112: 38.80 | J112: 67.80
A113: 111 | B113: 11220104818 | C113: 龙佛松 | D113: 妙隘乡党务政务综合服务中心 | E113: 32 | F113: 58.00 | G113: 29.00 | H113: 77.38 | I113: 38.69 | J113: 67.69
A114: 112 | B114: 11220104022 | C114: 吴沙沙 | D114: 妙隘乡党务政务综合服务中心 | E114: 32 | F114: 59.50 | G114: 29.75 | H114: 75.10 | I114: 37.55 | J114: 67.30
A115: 113 | B115: 11220100910 | C115: 龚月明 | D115: 妙隘乡党务政务综合服务中心 | E115: 32 | F115: 57.00 | G115: 28.50 | H115: 75.24 | I115: 37.62 | J115: 66.12
A116: 114 | B116: 11220107001 | C116: 龙大权 | D116: 妙隘乡乡村振兴服务中心 | E116: 33 | F116: 59.50 | G116: 29.75 | H116: 77.46 | I116: 38.73 | J116: 68.48 | K116: 拟进入体检
A117: 115 | B117: 11220103924 | C117: 冉伟栋 | D117: 妙隘乡乡村振兴服务中心 | E117: 33 | F117: 59.00 | G117: 29.50 | H117: 77.28 | I117: 38.64 | J117: 68.14
A118: 116 | B118: 11220201104 | C118: 凃成婕 | D118: 妙隘乡乡村振兴服务中心 | E118: 33 | F118: 59.50 | G118: 29.75 | H118: 76.54 | I118: 38.27 | J118: 68.02
A119: 117 | B119: 11220401501 | C119: 周永洋 | D119: 妙隘乡社会工作服务中心 | E119: 34 | F119: 70.50 | G119: 35.25 | H119: 79.82 | I119: 39.91 | J119: 75.16 | K119: 拟进入体检
A120: 118 | B120: 11220403917 | C120: 唐一斌 | D120: 妙隘乡社会工作服务中心 | E120: 34 | F120: 61.00 | G120: 30.50 | H120: 71.76 | I120: 35.88 | J120: 66.38
A121: 119 | B121: 11220204602 | C121: 姚伦力 | D121: 妙隘乡社会工作服务中心 | E121: 34 | F121: 61.00 | G121: 30.50 | H121: 70.78 | I121: 35.39 | J121: 65.89
A122: 120 | B122: 11220108204 | C122: 张启宇 | D122: 妙隘乡社会工作服务中心 | E122: 34 | F122: 61.00 | G122: 30.50 | H122: 0.00 | I122: 0.00 | J122: 30.50
A123: 121 | B123: 11220108101 | C123: 吴文堡 | D123: 妙隘乡农业服务中心 | E123: 35 | F123: 51.00 | G123: 25.50 | H123: 73.80 | I123: 36.90 | J123: 62.40 | K123: 拟进入体检
A124: 122 | B124: 11220102815 | C124: 孙施 | D124: 妙隘乡农业服务中心 | E124: 35 | F124: 47.50 | G124: 23.75 | H124: 76.94 | I124: 38.47 | J124: 62.22
A125: 123 | B125: 11220203710 | C125: 龙成林 | D125: 妙隘乡农业服务中心 | E125: 35 | F125: 48.00 | G125: 24.00 | H125: 0.00 | I125: 0.00 | J125: 24.00
A126: 124 | B126: 11220107507 | C126: 刘少义 | D126: 永安乡党务政务综合服务中心 | E126: 36 | F126: 60.00 | G126: 30.00 | H126: 81.20 | I126: 40.60 | J126: 70.60 | K126: 拟进入体检
A127: 125 | B127: 11220106929 | C127: 陈瑞迪 | D127: 永安乡党务政务综合服务中心 | E127: 36 | F127: 60.00 | G127: 30.00 | H127: 78.72 | I127: 39.36 | J127: 69.36
A128: 126 | B128: 11220106215 | C128: 隆晓东 | D128: 永安乡党务政务综合服务中心 | E128: 36 | F128: 58.00 | G128: 29.00 | H128: 73.94 | I128: 36.97 | J128: 65.97
A129: 127 | B129: 11220102522 | C129: 冯佰俊 | D129: 永安乡乡村振兴服务中心 | E129: 37 | F129: 69.50 | G129: 34.75 | H129: 75.34 | I129: 37.67 | J129: 72.42 | K129: 拟进入体检
A130: 128 | B130: 11220105517 | C130: 石勇 | D130: 永安乡乡村振兴服务中心 | E130: 37 | F130: 59.00 | G130: 29.50 | H130: 79.46 | I130: 39.73 | J130: 69.23
A131: 129 | B131: 11220105228 | C131: 刘明刚 | D131: 永安乡乡村振兴服务中心 | E131: 37 | F131: 58.00 | G131: 29.00 | H131: 69.54 | I131: 34.77 | J131: 63.77
A132: 130 | B132: 11220102401 | C132: 聂念磊 | D132: 永安乡社会工作服务中心 | E132: 38 | F132: 67.50 | G132: 33.75 | H132: 80.84 | I132: 40.42 | J132: =I132+G132 -> 74.17 | K132: 拟进入体检
A133: 131 | B133: 11220300516 | C133: 杨继 | D133: 永安乡社会工作服务中心 | E133: 38 | F133: 64.50 | G133: 32.25 | H133: 73.06 | I133: 36.53 | J133: 68.78
A134: 132 | B134: 11220201401 | C134: 田茂瑞 | D134: 永安乡社会工作服务中心 | E134: 38 | F134: 63.00 | G134: 31.50 | H134: 70.70 | I134: 35.35 | J134: 66.85
A135: 133 | B135: 11220101915 | C135: 戴康宁 | D135: 永安乡社会工作服务中心 | E135: 39 | F135: 54.00 | G135: 27.00 | H135: 88.00 | I135: 44.00 | J135: 71.00 | K135: 拟进入体检
A136: 134 | B136: 11220206122 | C136: 黄伟 | D136: 永安乡社会工作服务中心 | E136: 39 | F136: 49.00 | G136: 24.50 | H136: 82.20 | I136: 41.10 | J136: 65.60
A137: 135 | B137: 11220103225 | C137: 龙再田 | D137: 永安乡社会工作服务中心 | E137: 39 | F137: 37.00 | G137: 18.50 | H137: 75.14 | I137: 37.57 | J137: 56.07
A138: 136 | B138: 11220100822 | C138: 滕曼玉 | D138: 永安乡农业服务中心 | E138: 40 | F138: 50.50 | G138: 25.25 | H138: 78.64 | I138: 39.32 | J138: 64.57 | K138: 拟进入体检
A139: 137 | B139: 11220102513 | C139: 杨丽 | D139: 永安乡农业服务中心 | E139: 40 | F139: 54.50 | G139: 27.25 | H139: 71.68 | I139: 35.84 | J139: 63.09
A140: 138 | B140: 11220300610 | C140: 边海智 | D140: 永安乡农业服务中心 | E140: 40 | F140: 51.50 | G140: 25.75 | H140: 72.68 | I140: 36.34 | J140: 62.09
A141: 139 | B141: 11220103218 | C141: 刘艳芳 | D141: 长坪乡党务政务综合服务中心 | E141: 41 | F141: 68.00 | G141: 34.00 | H141: 76.28 | I141: 38.14 | J141: 72.14 | K141: 拟进入体检
A142: 140 | B142: 11220402716 | C142: 李小平 | D142: 长坪乡党务政务综合服务中心 | E142: 41 | F142: 59.50 | G142: 29.75 | H142: 83.23 | I142: 41.62 | J142: 71.37
A143: 141 | B143: 11220108520 | C143: 熊英秀 | D143: 长坪乡党务政务综合服务中心 | E143: 41 | F143: 62.50 | G143: 31.25 | H143: 75.61 | I143: 37.81 | J143: 69.06
A144: 142 | B144: 11220103130 | C144: 杨波 | D144: 长坪乡乡村振兴服务中心 | E144: 42 | F144: 61.50 | G144: 30.75 | H144: 78.48 | I144: 39.24 | J144: 69.99 | K144: 拟进入体检
A145: 143 | B145: 11220206017 | C145: 石龙坤 | D145: 长坪乡乡村振兴服务中心 | E145: 42 | F145: 59.00 | G145: 29.50 | H145: 78.26 | I145: 39.13 | J145: 68.63
A146: 144 | B146: 11220205602 | C146: 胡前军 | D146: 长坪乡乡村振兴服务中心 | E146: 42 | F146: 66.00 | G146: 33.00 | H146: 0.00 | I146: 0.00 | J146: 33.00
A147: 145 | B147: 11220206222 | C147: 蒋德宇 | D147: 沙坝河乡党务政务综合服务中心 | E147: 43 | F147: 63.50 | G147: 31.75 | H147: 81.82 | I147: 40.91 | J147: 72.66 | K147: 拟进入体检
A148: 146 | B148: 11220101630 | C148: 何宏洲 | D148: 沙坝河乡党务政务综合服务中心 | E148: 43 | F148: 60.50 | G148: 30.25 | H148: 82.36 | I148: 41.18 | J148: 71.43
A149: 147 | B149: 11220201008 | C149: 龙丽 | D149: 沙坝河乡党务政务综合服务中心 | E149: 43 | F149: 59.50 | G149: 29.75 | H149: 70.63 | I149: 35.32 | J149: 65.07
A150: 148 | B150: 11220105607 | C150: 胥泽波 | D150: 沙坝河乡党务政务综合服务中心 | E150: 44 | F150: 58.50 | G150: 29.25 | H150: 78.75 | I150: 39.38 | J150: 68.63 | K150: 拟进入体检
A151: 149 | B151: 11220302109 | C151: 文红 | D151: 沙坝河乡党务政务综合服务中心 | E151: 44 | F151: 57.50 | G151: 28.75 | H151: 77.05 | I151: 38.53 | J151: 67.28
A152: 150 | B152: 11220104223 | C152: 彭爱芬 | D152: 沙坝河乡党务政务综合服务中心 | E152: 44 | F152: 53.00 | G152: 26.50 | H152: 77.60 | I152: 38.80 | J152: 65.30
A153: 151 | B153: 11220300410 | C153: 杨茂春 | D153: 沙坝河乡党务政务综合服务中心 | E153: 44 | F153: 53.00 | G153: 26.50 | H153: 76.69 | I153: 38.35 | J153: 64.85
A154: 152 | B154: 11220101230 | C154: 陈劲松 | D154: 沙坝河乡综治中心（网格化管理服务中心） | E154: 45 | F154: 63.00 | G154: 31.50 | H154: 83.56 | I154: 41.78 | J154: 73.28 | K154: 拟进入体检
A155: 153 | B155: 11220201930 | C155: 李淑文 | D155: 沙坝河乡综治中心（网格化管理服务中心） | E155: 45 | F155: 57.50 | G155: 28.75 | H155: 71.21 | I155: 35.61 | J155: 64.36
A156: 154 | B156: 11220301414 | C156: 杨通开 | D156: 沙坝河乡综治中心（网格化管理服务中心） | E156: 45 | F156: 57.00 | G156: 28.50 | H156: 0.00 | I156: 0.00 | J156: 28.50
A157: 155 | B157: 11220103314 | C157: 杨波 | D157: 沙坝河乡乡村振兴服务中心 | E157: 46 | F157: 63.00 | G157: 31.50 | H157: 82.84 | I157: 41.42 | J157: 72.92 | K157: 拟进入体检
A158: 156 | B158: 11220400621 | C158: 黄路 | D158: 沙坝河乡乡村振兴服务中心 | E158: 46 | F158: 67.50 | G158: 33.75 | H158: 75.64 | I158: 37.82 | J158: 71.57
A159: 157 | B159: 11220107903 | C159: 吴志超 | D159: 沙坝河乡乡村振兴服务中心 | E159: 46 | F159: 63.00 | G159: 31.50 | H159: 78.68 | I159: 39.34 | J159: 70.84
A160: 158 | B160: 11220105625 | C160: 黄迅 | D160: 沙坝河乡农业服务中心 | E160: 47 | F160: 57.00 | G160: 28.50 | H160: 72.76 | I160: 36.38 | J160: 64.88 | K160: 拟进入体检
A161: 159 | B161: 11220302527 | C161: 陈青 | D161: 沙坝河乡农业服务中心 | E161: 47 | F161: 52.50 | G161: 26.25 | H161: 73.28 | I161: 36.64 | J161: 62.89
A162: 160 | B162: 11220301619 | C162: 杨明刚 | D162: 沙坝河乡农业服务中心 | E162: 47 | F162: 46.00 | G162: 23.00 | H162: 75.90 | I162: 37.95 | J162: 60.95
A163: 161 | B163: 11220106712 | C163: 高贤卫 | D163: 沙坝河乡农业服务中心 | E163: 48 | F163: 41.00 | G163: 20.50 | H163: 84.00 | I163: 42.00 | J163: 62.50 | K163: 拟进入体检
A164: 162 | B164: 11220103104 | C164: 唐建超 | D164: 沙坝河乡农业服务中心 | E164: 48 | F164: 39.00 | G164: 19.50 | H164: 78.40 | I164: 39.20 | J164: 58.70
A165: 163 | B165: 11220301312 | C165: 石鹏飞 | D165: 沙坝河乡农业服务中心 | E165: 48 | F165: 40.50 | G165: 20.25 | H165: 73.40 | I165: 36.70 | J165: 56.95
A166: 164 | B166: 11220204318 | C166: 吴显玲 | D166: 石梁乡综治中心（网格化管理服务中心） | E166: 49 | F166: 63.00 | G166: 31.50 | H166: 77.60 | I166: 38.80 | J166: 70.30 | K166: 拟进入体检
A167: 165 | B167: 11220100818 | C167: 龙通祥 | D167: 石梁乡综治中心（网格化管理服务中心） | E167: 49 | F167: 60.00 | G167: 30.00 | H167: 78.04 | I167: 39.02 | J167: 69.02
A168: 166 | B168: 11220300512 | C168: 胥勇 | D168: 石梁乡综治中心（网格化管理服务中心） | E168: 49 | F168: 56.50 | G168: 28.25 | H168: 80.16 | I168: 40.08 | J168: 68.33
A169: 167 | B169: 11220102328 | C169: 陈建兰 | D169: 石梁乡农业服务中心 | E169: 50 | F169: 43.50 | G169: 21.75 | H169: 78.38 | I169: 39.19 | J169: 60.94 | K169: 拟进入体检
A170: 168 | B170: 11220102430 | C170: 吴咏 | D170: 石梁乡农业服务中心 | E170: 50 | F170: 41.00 | G170: 20.50 | H170: 64.82 | I170: 32.41 | J170: 52.91
A171: 169 | B171: 11220107306 | C171: 杨一航 | D171: 石梁乡农业服务中心 | E171: 50 | F171: 49.50 | G171: 24.75 | H171: 0.00 | I171: 0.00 | J171: 24.75
A172: 170 | B172: 11220106808 | C172: 杨光雄 | D172: 石梁乡农业服务中心 | E172: 51 | F172: 54.50 | G172: 27.25 | H172: 80.00 | I172: 40.00 | J172: 67.25 | K172: 拟进入体检
A173: 171 | B173: 11220200916 | C173: 陈锐 | D173: 石梁乡农业服务中心 | E173: 51 | F173: 54.00 | G173: 27.00 | H173: 80.20 | I173: 40.10 | J173: 67.10
A174: 172 | B174: 11220303902 | C174: 张绍廷 | D174: 石梁乡农业服务中心 | E174: 51 | F174: 46.50 | G174: 23.25 | H174: 80.60 | I174: 40.30 | J174: 63.55
A175: 173 | B175: 11220403316 | C175: 杨凯 | D175: 石梁乡社会工作服务中心 | E175: 52 | F175: 63.50 | G175: 31.75 | H175: 84.38 | I175: 42.19 | J175: 73.94 | K175: 拟进入体检
A176: 174 | B176: 11220100825 | C176: 何艺 | D176: 石梁乡社会工作服务中心 | E176: 52 | F176: 61.50 | G176: 30.75 | H176: 78.00 | I176: 39.00 | J176: 69.75
A177: 175 | B177: 11220400824 | C177: 杨进 | D177: 石梁乡社会工作服务中心 | E177: 52 | F177: 58.00 | G177: 29.00 | H177: 77.84 | I177: 38.92 | J177: 67.92
A178: 176 | B178: 11220101427 | C178: 陈雄 | D178: 石梁乡社会工作服务中心 | E178: 53 | F178: 47.50 | G178: 23.75 | H178: 78.70 | I178: 39.35 | J178: 63.10 | K178: 拟进入体检
A179: 177 | B179: 11220401718 | C179: 龙金桥 | D179: 石梁乡社会工作服务中心 | E179: 53 | F179: 47.00 | G179: 23.50 | H179: 74.42 | I179: 37.21 | J179: 60.71
A180: 178 | B180: 11220203224 | C180: 李卓鸿 | D180: 石梁乡社会工作服务中心 | E180: 53 | F180: 49.50 | G180: 24.75 | H180: 70.22 | I180: 35.11 | J180: 59.86
A181: 179 | B181: 11220200313 | C181: 崔黎英 | D181: 瓦溪乡党务政务综合服务中心 | E181: 54 | F181: 57.50 | G181: 28.75 | H181: 81.98 | I181: 40.99 | J181: 69.74 | K181: 拟进入体检
A182: 180 | B182: 11220201101 | C182: 田莹蕾 | D182: 瓦溪乡党务政务综合服务中心 | E182: 54 | F182: 55.50 | G182: 27.75 | H182: 77.32 | I182: 38.66 | J182: 66.41
A183: 181 | B183: 11220102410 | C183: 石峰 | D183: 瓦溪乡党务政务综合服务中心 | E183: 54 | F183: 54.50 | G183: 27.25 | H183: 75.64 | I183: 37.82 | J183: 65.07
A184: 182 | B184: 11220301109 | C184: 杨卓霖 | D184: 瓦溪乡综治中心（网格化管理服务中心） | E184: 55 | F184: 52.50 | G184: 26.25 | H184: 70.36 | I184: 35.18 | J184: 61.43 | K184: 拟进入体检
A185: 183 | B185: 11220104708 | C185: 龙炳旭 | D185: 瓦溪乡综治中心（网格化管理服务中心） | E185: 55 | F185: 48.00 | G185: 24.00 | H185: 74.76 | I185: 37.38 | J185: 61.38
A186: 184 | B186: 11220404204 | C186: 雷帆 | D186: 瓦溪乡综治中心（网格化管理服务中心） | E186: 55 | F186: 49.00 | G186: 24.50 | H186: 73.58 | I186: 36.79 | J186: 61.29
A187: 185 | B187: 11220107007 | C187: 冉群飞 | D187: 瓦溪乡乡村振兴服务中心 | E187: 56 | F187: 64.00 | G187: 32.00 | H187: 83.36 | I187: 41.68 | J187: 73.68 | K187: 拟进入体检
A188: 186 | B188: 11220301311 | C188: 龙忠林 | D188: 瓦溪乡乡村振兴服务中心 | E188: 56 | F188: 58.50 | G188: 29.25 | H188: 77.86 | I188: 38.93 | J188: 68.18
A189: 187 | B189: 11220403918 | C189: 杨念 | D189: 瓦溪乡乡村振兴服务中心 | E189: 56 | F189: 56.00 | G189: 28.00 | H189: 56.82 | I189: 28.41 | J189: 56.41
A190: 188 | B190: 11220100729 | C190: 冉雨 | D190: 瓦溪乡社会工作服务中心 | E190: 57 | F190: 44.50 | G190: 22.25 | H190: 75.80 | I190: 37.90 | J190: 60.15 | K190: 拟进入体检
A191: 189 | B191: 11220101830 | C191: 吴远 | D191: 瓦溪乡社会工作服务中心 | E191: 57 | F191: 36.00 | G191: 18.00 | H191: 78.80 | I191: 39.40 | J191: 57.40
A192: 190 | B192: 11220201607 | C192: 崔德波 | D192: 瓦溪乡社会工作服务中心 | E192: 57 | F192: 32.50 | G192: 16.25 | H192: 72.80 | I192: 36.40 | J192: 52.65
A193: 191 | B193: 11220104415 | C193: 冉秀松 | D193: 瓦溪乡农业服务中心 | E193: 58 | F193: 57.50 | G193: 28.75 | H193: 78.58 | I193: 39.29 | J193: 68.04 | K193: 拟进入体检
A194: 192 | B194: 11220100316 | C194: 黄慧 | D194: 瓦溪乡农业服务中心 | E194: 58 | F194: 44.00 | G194: 22.00 | H194: 79.34 | I194: 39.67 | J194: 61.67
A195: 193 | B195: 11220200224 | C195: 杨雪 | D195: 瓦溪乡农业服务中心 | E195: 58 | F195: 46.50 | G195: 23.25 | H195: 73.52 | I195: 36.76 | J195: 60.01
A196: 194 | B196: 11220205017 | C196: 雷慧敏 | D196: 木树镇乡村振兴服务中心 | E196: 59 | F196: 62.50 | G196: 31.25 | H196: 81.06 | I196: 40.53 | J196: =I196+G196 -> 71.78 | K196: 拟进入体检
A197: 195 | B197: 11220204209 | C197: 谭智慧 | D197: 木树镇乡村振兴服务中心 | E197: 59 | F197: 63.50 | G197: 31.75 | H197: 76.96 | I197: 38.48 | J197: 70.23
A198: 196 | B198: 11220202608 | C198: 涂成芳 | D198: 木树镇乡村振兴服务中心 | E198: 59 | F198: 59.50 | G198: 29.75 | H198: 78.74 | I198: 39.37 | J198: 69.12
A199: 197 | B199: 11220103620 | C199: 张锦耀 | D199: 木树镇乡村振兴服务中心 | E199: 60 | F199: 67.00 | G199: 33.50 | H199: 76.88 | I199: 38.44 | J199: 71.94 | K199: 拟进入体检
A200: 198 | B200: 11220301301 | C200: 田祥 | D200: 木树镇乡村振兴服务中心 | E200: 60 | F200: 66.50 | G200: 33.25 | H200: 76.56 | I200: 38.28 | J200: 71.53
... 150 more rows
